[Event "*** Titled Tuesday Blitz"]
[Site "Chess.com"]
[Date "2020.05.12"]
[Round "5"]
[White "Parhamov"]
[Black "vanea_03"]
[Result "1-0"]
[WhiteElo "3003"]
[BlackElo "2627"]
[TimeControl "180+1"]
[EndTime "10:54:24 PDT"]
[Termination "Parhamov won by resignation"]

1. e4 {[%clk 0:02:34.4]} 1... e5 {[%clk 0:02:58.5]} 2. Nf3 {[%clk 0:02:32.5]}
2... Nc6 {[%clk 0:02:58.8]} 3. Bb5 {[%clk 0:02:32.1]} 3... a6 {[%clk 0:02:58.9]}
4. Ba4 {[%clk 0:02:32]} 4... Nf6 {[%clk 0:02:59.2]} 5. O-O {[%clk 0:02:31.3]}
5... Bc5 {[%clk 0:02:59.2]} 6. c3 {[%clk 0:02:28.8]} 6... b5 {[%clk 0:02:59.1]}
7. Bc2 {[%clk 0:02:27.4]} 7... d5 {[%clk 0:02:58.8]} 8. d4 {[%clk 0:02:26.2]}
8... dxe4 {[%clk 0:02:56.4]} 9. Nxe5 {[%clk 0:02:26]} 9... Nxe5 {[%clk
0:02:53.8]} 10. dxc5 {[%clk 0:02:26]} 10... Nd3 {[%clk 0:02:51.2]} 11. a4 {[%clk
0:01:52.3]} 11... Bb7 {[%clk 0:02:38.3]} 12. Bxd3 {[%clk 0:01:40.8]} 12... Qxd3
{[%clk 0:02:22.1]} 13. Qxd3 {[%clk 0:01:40.2]} 13... exd3 {[%clk 0:02:23]} 14.
axb5 {[%clk 0:01:38.2]} 14... axb5 {[%clk 0:02:23.9]} 15. Rxa8+ {[%clk
0:01:36.7]} 15... Bxa8 {[%clk 0:02:24.8]} 16. Na3 {[%clk 0:01:36.8]} 16... Bc6
{[%clk 0:02:18.6]} 17. Rd1 {[%clk 0:01:35]} 17... Ke7 {[%clk 0:01:47.3]} 18.
Rxd3 {[%clk 0:01:32.5]} 18... Rd8 {[%clk 0:01:47.8]} 19. Rxd8 {[%clk 0:01:29.3]}
19... Kxd8 {[%clk 0:01:46.1]} 20. Bg5 {[%clk 0:01:29.7]} 20... Ke7 {[%clk
0:01:46.4]} 21. Nc2 {[%clk 0:01:29.5]} 21... Bd7 {[%clk 0:01:43.7]} 22. Nd4
{[%clk 0:01:29]} 22... c6 {[%clk 0:01:40]} 23. f4 {[%clk 0:01:29.3]} 23... h6
{[%clk 0:01:35.7]} 24. Bh4 {[%clk 0:01:26.5]} 24... g5 {[%clk 0:01:22.3]} 25.
fxg5 {[%clk 0:01:26.4]} 25... Ne4 {[%clk 0:01:23]} 26. gxh6+ {[%clk 0:01:26.3]}
26... Kf8 {[%clk 0:01:23.6]} 27. h3 {[%clk 0:01:15.1]} 27... Kg8 {[%clk
0:01:19.2]} 28. Be7 {[%clk 0:01:13.9]} 28... Kh7 {[%clk 0:01:06.3]} 29. Bf8
{[%clk 0:01:14]} 29... Kg8 {[%clk 0:01:06.9]} 30. Bg7 {[%clk 0:01:09.9]} 30...
Nxc5 {[%clk 0:01:07.2]} 31. Nf3 {[%clk 0:01:08.7]} 31... Nd3 {[%clk 0:00:58.7]}
32. g4 {[%clk 0:01:02.3]} 32... Be6 {[%clk 0:00:52.3]} 33. Ng5 {[%clk
0:01:00.6]} 1-0

[Event "*** Titled Tuesday Blitz"]
[Site "Chess.com"]
[Date "2020.05.12"]
[Round "5"]
[White "IriBu"]
[Black "WildBizon"]
[Result "1-0"]
[WhiteElo "2551"]
[BlackElo "2681"]
[TimeControl "180+1"]
[EndTime "10:54:24 PDT"]
[Termination "IriBu won by checkmate"]

1. e4 {[%clk 0:03:00.9]} 1... c5 {[%clk 0:02:59.8]} 2. Nf3 {[%clk 0:03:00.2]}
2... Nc6 {[%clk 0:02:58.9]} 3. Bb5 {[%clk 0:03:00]} 3... g6 {[%clk 0:02:58.6]}
4. Bxc6 {[%clk 0:02:59.3]} 4... bxc6 {[%clk 0:02:58.8]} 5. d4 {[%clk 0:02:59.3]}
5... cxd4 {[%clk 0:02:54.6]} 6. Qxd4 {[%clk 0:02:58.5]} 6... f6 {[%clk 0:02:52]}
7. O-O {[%clk 0:02:57.6]} 7... Bg7 {[%clk 0:02:48.7]} 8. c4 {[%clk 0:02:57.2]}
8... Nh6 {[%clk 0:02:45.5]} 9. Bxh6 {[%clk 0:02:55.8]} 9... Bxh6 {[%clk
0:02:42.9]} 10. c5 {[%clk 0:02:55.6]} 10... O-O {[%clk 0:02:41.2]} 11. Rd1
{[%clk 0:02:54.7]} 11... Rb8 {[%clk 0:02:30.2]} 12. Na3 {[%clk 0:02:53.9]} 12...
a5 {[%clk 0:01:59.2]} 13. b3 {[%clk 0:02:51.4]} 13... Rb4 {[%clk 0:01:53.6]} 14.
Qd3 {[%clk 0:02:41.6]} 14... a4 {[%clk 0:01:44.9]} 15. Nc2 {[%clk 0:02:40.8]}
15... Rb8 {[%clk 0:01:42.2]} 16. b4 {[%clk 0:02:40.6]} 16... Ra8 {[%clk
0:01:37.4]} 17. a3 {[%clk 0:02:40]} 17... Ra7 {[%clk 0:01:36]} 18. h3 {[%clk
0:02:31.3]} 18... Ba6 {[%clk 0:01:35.1]} 19. Qc3 {[%clk 0:02:27.9]} 19... Qc7
{[%clk 0:01:33.7]} 20. Rd4 {[%clk 0:02:25.8]} 20... Bg7 {[%clk 0:01:32.1]} 21.
Re1 {[%clk 0:02:21.4]} 21... d6 {[%clk 0:01:22.6]} 22. cxd6 {[%clk 0:02:16.3]}
22... exd6 {[%clk 0:01:22.9]} 23. Qd2 {[%clk 0:02:16.3]} 23... Rd8 {[%clk
0:01:19.9]} 24. Ne3 {[%clk 0:02:11.7]} 24... Qe7 {[%clk 0:01:19.2]} 25. Rd1
{[%clk 0:02:06.8]} 25... Rad7 {[%clk 0:01:18.5]} 26. h4 {[%clk 0:01:54.4]} 26...
h5 {[%clk 0:01:18.3]} 27. Qc2 {[%clk 0:01:51]} 27... Bb5 {[%clk 0:01:17]} 28. e5
{[%clk 0:01:50.3]} 28... fxe5 {[%clk 0:01:15.1]} 29. R4d2 {[%clk 0:01:45.4]}
29... e4 {[%clk 0:01:14.4]} 30. Nd4 {[%clk 0:01:42.7]} 30... Bxd4 {[%clk
0:01:12.5]} 31. Rxd4 {[%clk 0:01:42.3]} 31... d5 {[%clk 0:01:13.4]} 32. g3
{[%clk 0:01:40.1]} 32... Qf6 {[%clk 0:01:12.7]} 33. Qc5 {[%clk 0:01:38.3]} 33...
Rf7 {[%clk 0:01:10.2]} 34. R1d2 {[%clk 0:01:37.6]} 34... Rdf8 {[%clk 0:01:08.3]}
35. Nxd5 {[%clk 0:01:30.8]} 35... cxd5 {[%clk 0:01:08.6]} 36. Qxb5 {[%clk
0:01:31]} 36... e3 {[%clk 0:01:09.1]} 37. fxe3 {[%clk 0:01:31.3]} 37... Qe5
{[%clk 0:01:05.9]} 38. Qd3 {[%clk 0:01:12.7]} 38... Qxg3+ {[%clk 0:01:04.6]} 39.
Rg2 {[%clk 0:01:13.2]} 39... Rf1+ {[%clk 0:00:52.3]} 40. Qxf1 {[%clk 0:01:12.9]}
40... Rxf1+ {[%clk 0:00:52.8]} 41. Kxf1 {[%clk 0:01:12.7]} 41... Qf3+ {[%clk
0:00:53.1]} 42. Rf2 {[%clk 0:01:09.2]} 42... Qxe3 {[%clk 0:00:53.3]} 43. Rdf4
{[%clk 0:01:07.6]} 43... Qxa3 {[%clk 0:00:50.8]} 44. Rf8+ {[%clk 0:01:05.4]}
44... Kg7 {[%clk 0:00:51.3]} 45. R2f7+ {[%clk 0:01:05.8]} 45... Kh6 {[%clk
0:00:52.2]} 46. Rh8# {[%clk 0:01:06.1]} 1-0

[Event "*** Titled Tuesday Blitz"]
[Site "Chess.com"]
[Date "2020.05.12"]
[Round "5"]
[White "jerry_77"]
[Black "DonPreuss"]
[Result "1-0"]
[WhiteElo "2462"]
[BlackElo "2180"]
[TimeControl "180+1"]
[EndTime "10:54:24 PDT"]
[Termination "jerry_77 won by resignation"]

1. e4 {[%clk 0:03:00.9]} 1... e5 {[%clk 0:02:56]} 2. Nf3 {[%clk 0:03:00.2]} 2...
d5 {[%clk 0:02:56.2]} 3. Nxe5 {[%clk 0:02:58.3]} 3... Bd6 {[%clk 0:02:55.8]} 4.
d4 {[%clk 0:02:54.6]} 4... dxe4 {[%clk 0:02:56.1]} 5. Nc3 {[%clk 0:02:54.1]}
5... Bxe5 {[%clk 0:02:55.8]} 6. dxe5 {[%clk 0:02:55]} 6... Qxd1+ {[%clk
0:02:56.1]} 7. Nxd1 {[%clk 0:02:55.8]} 7... Nc6 {[%clk 0:02:49.4]} 8. Bb5 {[%clk
0:02:55.8]} 8... Bd7 {[%clk 0:02:43.2]} 9. Nc3 {[%clk 0:02:53.3]} 9... O-O-O
{[%clk 0:02:37.3]} 10. Bg5 {[%clk 0:02:51.2]} 10... Re8 {[%clk 0:02:32.5]} 11.
O-O-O {[%clk 0:02:44.8]} 11... Nxe5 {[%clk 0:02:28.8]} 12. Bxd7+ {[%clk
0:02:43]} 12... Nxd7 {[%clk 0:02:28]} 13. Rhe1 {[%clk 0:02:43.9]} 13... f5
{[%clk 0:02:24]} 14. Rd5 {[%clk 0:02:38.3]} 14... h6 {[%clk 0:02:06.2]} 15. Be3
{[%clk 0:02:26.4]} 15... Ne7 {[%clk 0:02:00.4]} 16. Ra5 {[%clk 0:02:21.9]} 16...
a6 {[%clk 0:01:59.6]} 17. Nd5 {[%clk 0:02:21.9]} 17... Nxd5 {[%clk 0:01:54.7]}
18. Rxd5 {[%clk 0:02:22.8]} 18... g6 {[%clk 0:01:53.7]} 19. h4 {[%clk 0:02:22]}
19... Rhf8 {[%clk 0:01:49.7]} 20. Bxh6 {[%clk 0:02:21.5]} 20... Rf7 {[%clk
0:01:48.2]} 21. Red1 {[%clk 0:02:20.4]} 21... Nf6 {[%clk 0:01:45]} 22. R5d4
{[%clk 0:02:19.9]} 22... Rd7 {[%clk 0:01:40.7]} 23. Bg5 {[%clk 0:02:15.7]} 23...
Rxd4 {[%clk 0:01:39.2]} 24. Rxd4 {[%clk 0:02:16.6]} 24... Ng4 {[%clk 0:01:31.6]}
25. f3 {[%clk 0:02:16.5]} 25... exf3 {[%clk 0:01:26]} 26. gxf3 {[%clk
0:02:17.4]} 26... Nh2 {[%clk 0:01:15.9]} 27. Rd3 {[%clk 0:02:04.8]} 27... b6
{[%clk 0:01:06.3]} 28. Kd1 {[%clk 0:02:02.7]} 28... Nf1 {[%clk 0:00:55.6]} 29.
Bf4 {[%clk 0:02:00.5]} 29... Rh8 {[%clk 0:00:52.4]} 30. Rc3 {[%clk 0:01:56]}
30... c5 {[%clk 0:00:48.3]} 31. Ke2 {[%clk 0:01:55.3]} 31... Rxh4 {[%clk
0:00:46.3]} 32. Be5 {[%clk 0:01:53.9]} 32... Rh1 {[%clk 0:00:44]} 33. b4 {[%clk
0:01:48.9]} 33... Kb7 {[%clk 0:00:41.5]} 34. bxc5 {[%clk 0:01:48.7]} 34... bxc5
{[%clk 0:00:42.4]} 35. Rxc5 {[%clk 0:01:46.5]} 35... Nh2 {[%clk 0:00:41.8]} 36.
Rc7+ {[%clk 0:01:46.5]} 36... Kb6 {[%clk 0:00:41]} 37. Rh7 {[%clk 0:01:46.9]}
37... Rc1 {[%clk 0:00:34.9]} 38. Rxh2 {[%clk 0:01:44]} 38... Rxc2+ {[%clk
0:00:34.8]} 39. Kd3 {[%clk 0:01:44.6]} 39... Rxh2 {[%clk 0:00:28.2]} 40. Bxh2
{[%clk 0:01:45.5]} 40... Kc5 {[%clk 0:00:21.4]} 41. Bf4 {[%clk 0:01:44.9]} 41...
Kd5 {[%clk 0:00:19.7]} 42. Bg5 {[%clk 0:01:44.9]} 42... a5 {[%clk 0:00:19]} 43.
f4 {[%clk 0:01:45.8]} 43... Kc5 {[%clk 0:00:17.9]} 44. Kc3 {[%clk 0:01:46]}
44... a4 {[%clk 0:00:17]} 45. Bh6 {[%clk 0:01:45.2]} 45... a3 {[%clk 0:00:14.4]}
46. Bf8+ {[%clk 0:01:44.8]} 46... Kd5 {[%clk 0:00:14.2]} 47. Bxa3 {[%clk
0:01:44.5]} 47... g5 {[%clk 0:00:14.1]} 48. fxg5 {[%clk 0:01:44.6]} 48... f4
{[%clk 0:00:14]} 1-0

[Event "*** Titled Tuesday Blitz"]
[Site "Chess.com"]
[Date "2020.05.12"]
[Round "5"]
[White "ElGasanov"]
[Black "Jospem"]
[Result "1-0"]
[WhiteElo "2743"]
[BlackElo "2856"]
[TimeControl "180+1"]
[EndTime "10:54:28 PDT"]
[Termination "ElGasanov won by checkmate"]

1. d4 {[%clk 0:03:00.9]} 1... Nf6 {[%clk 0:03:00]} 2. Nf3 {[%clk 0:03:00.1]}
2... e6 {[%clk 0:03:00.2]} 3. c4 {[%clk 0:02:58]} 3... Bb4+ {[%clk 0:03:00.7]}
4. Nc3 {[%clk 0:02:57.6]} 4... b6 {[%clk 0:03:00.5]} 5. Qb3 {[%clk 0:02:56.5]}
5... c5 {[%clk 0:02:58]} 6. Bg5 {[%clk 0:02:54.7]} 6... Bb7 {[%clk 0:02:56.7]}
7. Rd1 {[%clk 0:02:48.9]} 7... h6 {[%clk 0:02:50.8]} 8. Bh4 {[%clk 0:02:47]}
8... Nc6 {[%clk 0:02:41.4]} 9. e3 {[%clk 0:02:45]} 9... O-O {[%clk 0:02:11.3]}
10. Be2 {[%clk 0:02:28]} 10... d6 {[%clk 0:01:51.7]} 11. O-O {[%clk 0:02:25]}
11... Bxc3 {[%clk 0:01:51.9]} 12. Qxc3 {[%clk 0:02:24.2]} 12... Qe7 {[%clk
0:01:42.8]} 13. Rfe1 {[%clk 0:02:08.8]} 13... Rac8 {[%clk 0:01:39.1]} 14. Bf1
{[%clk 0:01:51.7]} 14... cxd4 {[%clk 0:01:20]} 15. exd4 {[%clk 0:01:50.5]} 15...
d5 {[%clk 0:01:18.8]} 16. cxd5 {[%clk 0:01:43]} 16... Nb4 {[%clk 0:01:13]} 17.
Bxf6 {[%clk 0:01:31.7]} 17... gxf6 {[%clk 0:01:13.9]} 18. Qd2 {[%clk 0:01:31.4]}
18... Bxd5 {[%clk 0:01:13.4]} 19. Qxh6 {[%clk 0:01:24.5]} 19... Rfd8 {[%clk
0:00:45.4]} 20. Re3 {[%clk 0:01:07]} 20... Nc2 {[%clk 0:00:44.6]} 21. Bd3 {[%clk
0:01:01.5]} 21... f5 {[%clk 0:00:38]} 22. Ng5 {[%clk 0:00:48.4]} 22... f6 {[%clk
0:00:34.9]} 23. Rg3 {[%clk 0:00:48.8]} 23... f4 {[%clk 0:00:27.8]} 24. Bh7+
{[%clk 0:00:46.8]} 24... Kh8 {[%clk 0:00:28.3]} 25. Bg6+ {[%clk 0:00:42.4]}
25... Kg8 {[%clk 0:00:28.4]} 26. Bf7+ {[%clk 0:00:38.1]} 26... Qxf7 {[%clk
0:00:28.8]} 27. Nxf7+ {[%clk 0:00:38.6]} 27... Kxf7 {[%clk 0:00:29.7]} 28. Rg7+
{[%clk 0:00:37.9]} 28... Kf8 {[%clk 0:00:28.7]} 29. Qh8# {[%clk 0:00:38.5]} 1-0

[Event "*** Titled Tuesday Blitz"]
[Site "Chess.com"]
[Date "2020.05.12"]
[Round "5"]
[White "Chichin_chao"]
[Black "bait_or_mate"]
[Result "1-0"]
[WhiteElo "2367"]
[BlackElo "2488"]
[TimeControl "180+1"]
[EndTime "10:54:30 PDT"]
[Termination "Chichin_chao won by resignation"]

1. e4 {[%clk 0:03:00.9]} 1... c5 {[%clk 0:02:59.8]} 2. Nf3 {[%clk 0:02:58.4]}
2... e6 {[%clk 0:03:00.7]} 3. b3 {[%clk 0:02:57.3]} 3... a6 {[%clk 0:03:00.2]}
4. Bb2 {[%clk 0:02:57.4]} 4... Nc6 {[%clk 0:03:00.2]} 5. g3 {[%clk 0:02:55.8]}
5... Nf6 {[%clk 0:02:59.9]} 6. e5 {[%clk 0:02:55.6]} 6... Ng4 {[%clk 0:02:59.4]}
7. Bg2 {[%clk 0:02:43.2]} 7... Be7 {[%clk 0:02:59.3]} 8. h3 {[%clk 0:02:37.5]}
8... Nh6 {[%clk 0:02:59]} 9. O-O {[%clk 0:02:37.7]} 9... O-O {[%clk 0:02:58.9]}
10. d3 {[%clk 0:02:30.1]} 10... f6 {[%clk 0:02:58.4]} 11. exf6 {[%clk
0:02:26.6]} 11... Bxf6 {[%clk 0:02:59.3]} 12. Bxf6 {[%clk 0:02:25.6]} 12... Qxf6
{[%clk 0:03:00.2]} 13. Nbd2 {[%clk 0:02:25.5]} 13... d5 {[%clk 0:03:00.4]} 14.
c4 {[%clk 0:02:21.7]} 14... Bd7 {[%clk 0:02:54.5]} 15. Rc1 {[%clk 0:02:18.1]}
15... Nb4 {[%clk 0:02:44.2]} 16. cxd5 {[%clk 0:02:15.9]} 16... Nxd3 {[%clk
0:02:40.5]} 17. dxe6 {[%clk 0:02:16.1]} 17... Nxc1 {[%clk 0:02:17.4]} 18. exd7
{[%clk 0:02:14.4]} 18... Nxa2 {[%clk 0:02:18]} 19. Ne4 {[%clk 0:02:07.9]} 19...
Qe7 {[%clk 0:02:03.5]} 20. Qd5+ {[%clk 0:02:06.1]} 20... Nf7 {[%clk 0:01:58.2]}
21. Nxc5 {[%clk 0:02:01]} 21... Rad8 {[%clk 0:01:46.4]} 22. Re1 {[%clk
0:01:20.7]} 22... Qd6 {[%clk 0:01:45.1]} 23. Qxd6 {[%clk 0:01:10.3]} 23... Nxd6
{[%clk 0:01:46]} 24. Ne5 {[%clk 0:01:10.8]} 24... Rf5 {[%clk 0:01:32.4]} 25. f4
{[%clk 0:01:03.4]} 25... Nf7 {[%clk 0:00:53.2]} 26. Nxb7 {[%clk 0:00:59.4]}
26... Rb8 {[%clk 0:00:49.4]} 27. Nxf7 {[%clk 0:00:29.1]} 27... Kxf7 {[%clk
0:00:50.3]} 28. d8=Q {[%clk 0:00:26.5]} 28... Rxd8 {[%clk 0:00:50]} 29. Nxd8+
{[%clk 0:00:27.4]} 29... Kf8 {[%clk 0:00:49.1]} 30. Ne6+ {[%clk 0:00:26]} 1-0

[Event "*** Titled Tuesday Blitz"]
[Site "Chess.com"]
[Date "2020.05.12"]
[Round "5"]
[White "PelinGorki"]
[Black "Duong57"]
[Result "1-0"]
[WhiteElo "2472"]
[BlackElo "2257"]
[TimeControl "180+1"]
[EndTime "10:54:30 PDT"]
[Termination "PelinGorki won by resignation"]

1. e4 {[%clk 0:03:00.9]} 1... c5 {[%clk 0:02:59.5]} 2. a3 {[%clk 0:03:00.4]}
2... Nc6 {[%clk 0:02:53.6]} 3. b4 {[%clk 0:02:59.4]} 3... d5 {[%clk 0:02:28.6]}
4. exd5 {[%clk 0:02:58.4]} 4... Qxd5 {[%clk 0:02:26.8]} 5. Nc3 {[%clk
0:02:58.1]} 5... Qe5+ {[%clk 0:02:22.1]} 6. Be2 {[%clk 0:02:58.3]} 6... Bg4
{[%clk 0:02:10]} 7. h3 {[%clk 0:02:52.2]} 7... Bh5 {[%clk 0:02:06.5]} 8. g4
{[%clk 0:02:52.3]} 8... Bg6 {[%clk 0:02:06.2]} 9. Nf3 {[%clk 0:02:52.7]} 9...
Qc7 {[%clk 0:01:54.6]} 10. bxc5 {[%clk 0:02:52.7]} 10... e6 {[%clk 0:01:50.3]}
11. d4 {[%clk 0:02:51.2]} 11... a6 {[%clk 0:01:50.4]} 12. Be3 {[%clk 0:02:46.1]}
12... Rd8 {[%clk 0:01:46.3]} 13. Qc1 {[%clk 0:02:46]} 13... Nf6 {[%clk
0:01:44.1]} 14. O-O {[%clk 0:02:44.6]} 14... Be7 {[%clk 0:01:38.4]} 15. Rd1
{[%clk 0:02:37.3]} 15... O-O {[%clk 0:01:37.3]} 16. Bf4 {[%clk 0:02:32.8]} 16...
Qc8 {[%clk 0:01:34.3]} 17. Na4 {[%clk 0:02:29.1]} 17... Nd5 {[%clk 0:01:33.9]}
18. Bg3 {[%clk 0:02:27.6]} 18... e5 {[%clk 0:01:14.2]} 19. Nxe5 {[%clk 0:02:23]}
19... Nxe5 {[%clk 0:01:13.6]} 20. Bxe5 {[%clk 0:02:23.9]} 20... Qc6 {[%clk
0:01:11.4]} 21. c4 {[%clk 0:02:23.8]} 21... Qxa4 {[%clk 0:01:03.1]} 22. cxd5
{[%clk 0:02:23.8]} 22... Be4 {[%clk 0:01:02.3]} 23. d6 {[%clk 0:02:18.1]} 23...
Bh4 {[%clk 0:01:01.3]} 24. Qc4 {[%clk 0:02:06.5]} 24... Qd7 {[%clk 0:00:37.2]}
25. d5 {[%clk 0:02:04]} 25... Bg6 {[%clk 0:00:35]} 26. c6 {[%clk 0:02:04.3]}
26... bxc6 {[%clk 0:00:33.6]} 27. dxc6 {[%clk 0:02:05.2]} 27... Qa7 {[%clk
0:00:33.1]} 28. Qd4 {[%clk 0:02:03.2]} 28... Qa8 {[%clk 0:00:25.8]} 29. Bxg7
{[%clk 0:01:52.8]} 29... Rxd6 {[%clk 0:00:21]} 30. Qxd6 {[%clk 0:01:41.9]} 30...
Kxg7 {[%clk 0:00:21.9]} 31. Bf3 {[%clk 0:01:38.3]} 31... Rd8 {[%clk 0:00:21.3]}
32. Qf4 {[%clk 0:01:18.8]} 32... Rxd1+ {[%clk 0:00:19.9]} 33. Rxd1 {[%clk
0:01:18]} 33... Qa7 {[%clk 0:00:19.2]} 34. Rd2 {[%clk 0:01:16.9]} 34... Qb6
{[%clk 0:00:18.4]} 35. g5 {[%clk 0:01:15.3]} 35... Qb1+ {[%clk 0:00:18.3]} 36.
Rd1 {[%clk 0:01:14.2]} 36... Qb3 {[%clk 0:00:16.3]} 37. Qxh4 {[%clk 0:01:11.9]}
37... Qxf3 {[%clk 0:00:15.7]} 38. Qh6+ {[%clk 0:01:12.5]} 1-0

[Event "*** Titled Tuesday Blitz"]
[Site "Chess.com"]
[Date "2020.05.12"]
[Round "5"]
[White "Shukh_Nikolay"]
[Black "BvsN"]
[Result "1-0"]
[WhiteElo "2523"]
[BlackElo "2382"]
[TimeControl "180+1"]
[EndTime "10:54:31 PDT"]
[Termination "Shukh_Nikolay won by resignation"]

1. d4 {[%clk 0:03:00.9]} 1... d5 {[%clk 0:02:59.9]} 2. c4 {[%clk 0:03:00.5]}
2... c6 {[%clk 0:03:00.5]} 3. Nf3 {[%clk 0:02:58.8]} 3... Nf6 {[%clk 0:03:00.2]}
4. e3 {[%clk 0:02:58.5]} 4... Bf5 {[%clk 0:02:59.9]} 5. Nc3 {[%clk 0:02:58]}
5... e6 {[%clk 0:03:00.4]} 6. Nh4 {[%clk 0:02:57]} 6... Be4 {[%clk 0:03:00.8]}
7. f3 {[%clk 0:02:56]} 7... Bg6 {[%clk 0:03:01.1]} 8. g3 {[%clk 0:02:55.6]} 8...
Bd6 {[%clk 0:02:59.6]} 9. Bd2 {[%clk 0:02:48.8]} 9... Nbd7 {[%clk 0:02:59.3]}
10. cxd5 {[%clk 0:02:44.4]} 10... cxd5 {[%clk 0:02:56.6]} 11. Nb5 {[%clk
0:02:39.7]} 11... Be7 {[%clk 0:02:45.3]} 12. Rc1 {[%clk 0:02:38.5]} 12... O-O
{[%clk 0:02:45.3]} 13. Nxg6 {[%clk 0:02:36]} 13... hxg6 {[%clk 0:02:45.2]} 14.
Bd3 {[%clk 0:02:32.9]} 14... e5 {[%clk 0:02:45]} 15. dxe5 {[%clk 0:02:29.7]}
15... Nxe5 {[%clk 0:02:45.1]} 16. Be2 {[%clk 0:02:29.7]} 16... a6 {[%clk
0:02:34.7]} 17. Nd4 {[%clk 0:02:28.8]} 17... Qb6 {[%clk 0:02:32.9]} 18. Qb3
{[%clk 0:02:21.9]} 18... Qxb3 {[%clk 0:02:20.3]} 19. axb3 {[%clk 0:02:05.2]}
19... Rfc8 {[%clk 0:02:21.2]} 20. Kf2 {[%clk 0:02:04.1]} 20... Bc5 {[%clk
0:02:16.8]} 21. Bc3 {[%clk 0:01:59.8]} 21... Re8 {[%clk 0:02:09.4]} 22. Rhd1
{[%clk 0:01:58.3]} 22... Rac8 {[%clk 0:02:09.3]} 23. g4 {[%clk 0:01:46.3]} 23...
g5 {[%clk 0:02:03.6]} 24. h3 {[%clk 0:01:21.7]} 24... g6 {[%clk 0:02:03.6]} 25.
b4 {[%clk 0:01:17.3]} 25... Ba7 {[%clk 0:02:03.2]} 26. b3 {[%clk 0:01:14.5]}
26... Rc7 {[%clk 0:02:01.3]} 27. Bb2 {[%clk 0:01:11.8]} 27... Rec8 {[%clk
0:02:00.7]} 28. Rxc7 {[%clk 0:01:10.9]} 28... Rxc7 {[%clk 0:02:01.6]} 29. Nb5
{[%clk 0:01:08.2]} 29... axb5 {[%clk 0:01:58]} 30. Bxe5 {[%clk 0:01:07.9]} 30...
Rc6 {[%clk 0:01:53.9]} 31. Bxb5 {[%clk 0:01:02.2]} 31... Re6 {[%clk 0:01:53.9]}
32. Bd4 {[%clk 0:00:53]} 32... Bb8 {[%clk 0:01:50.1]} 33. Rc1 {[%clk 0:00:49.1]}
33... Be5 {[%clk 0:01:46.2]} 34. Rc8+ {[%clk 0:00:46.6]} 34... Kg7 {[%clk
0:01:45]} 35. Bxe5 {[%clk 0:00:29.2]} 35... Rxe5 {[%clk 0:01:45.3]} 36. Rc7
{[%clk 0:00:29.4]} 36... d4 {[%clk 0:01:43.3]} 37. Bc4 {[%clk 0:00:26.6]} 37...
dxe3+ {[%clk 0:01:42]} 38. Ke2 {[%clk 0:00:26.5]} 38... Nd5 {[%clk 0:01:37.2]}
39. Bxd5 {[%clk 0:00:26.4]} 39... Rxd5 {[%clk 0:01:37.6]} 40. Rxb7 {[%clk
0:00:26.7]} 40... Rd2+ {[%clk 0:01:35.4]} 41. Kxe3 {[%clk 0:00:26.5]} 41... Rh2
{[%clk 0:01:36.3]} 42. b5 {[%clk 0:00:25.7]} 42... Rxh3 {[%clk 0:01:36.5]} 43.
b6 {[%clk 0:00:25.2]} 43... Rh1 {[%clk 0:01:36.7]} 44. Rc7 {[%clk 0:00:25]}
44... Rb1 {[%clk 0:01:36.6]} 45. Rc3 {[%clk 0:00:24.7]} 45... Re1+ {[%clk
0:01:34.1]} 46. Kd4 {[%clk 0:00:24.5]} 46... f5 {[%clk 0:01:25.8]} 47. b7 {[%clk
0:00:23.5]} 47... Re8 {[%clk 0:01:25.3]} 48. Rc8 {[%clk 0:00:23]} 1-0

[Event "*** Titled Tuesday Blitz"]
[Site "Chess.com"]
[Date "2020.05.12"]
[Round "5"]
[White "gahryman"]
[Black "yobdc"]
[Result "1-0"]
[WhiteElo "2638"]
[BlackElo "1850"]
[TimeControl "180+1"]
[EndTime "10:54:33 PDT"]
[Termination "gahryman won on time"]

1. e4 {[%clk 0:03:00.9]} 1... c5 {[%clk 0:02:58.9]} 2. Nf3 {[%clk 0:03:00.3]}
2... e6 {[%clk 0:02:59.3]} 3. g3 {[%clk 0:02:58.9]} 3... Nc6 {[%clk 0:02:57.1]}
4. Bg2 {[%clk 0:02:58.6]} 4... d6 {[%clk 0:02:54.5]} 5. O-O {[%clk 0:02:58]}
5... Nf6 {[%clk 0:02:54.7]} 6. Qe2 {[%clk 0:02:57.7]} 6... Be7 {[%clk
0:02:55.1]} 7. c3 {[%clk 0:02:57.2]} 7... O-O {[%clk 0:02:54.3]} 8. d4 {[%clk
0:02:56.9]} 8... d5 {[%clk 0:02:53.8]} 9. e5 {[%clk 0:02:52.5]} 9... Ne4 {[%clk
0:02:53.9]} 10. Nbd2 {[%clk 0:02:52.9]} 10... Nxd2 {[%clk 0:02:53.2]} 11. Bxd2
{[%clk 0:02:53.3]} 11... b6 {[%clk 0:02:40.1]} 12. h4 {[%clk 0:02:47.1]} 12...
a5 {[%clk 0:02:39.7]} 13. Rfe1 {[%clk 0:02:46]} 13... Ba6 {[%clk 0:02:39.5]} 14.
Qd1 {[%clk 0:02:44.6]} 14... cxd4 {[%clk 0:02:38.3]} 15. Nxd4 {[%clk 0:02:36.2]}
15... Nxd4 {[%clk 0:02:37.9]} 16. cxd4 {[%clk 0:02:37.1]} 16... Rc8 {[%clk
0:02:37.3]} 17. Qg4 {[%clk 0:02:31.8]} 17... Kh8 {[%clk 0:02:29.5]} 18. Rac1
{[%clk 0:02:30.2]} 18... Qd7 {[%clk 0:02:28.8]} 19. Qh5 {[%clk 0:02:04.5]} 19...
Bb4 {[%clk 0:02:15.6]} 20. Bxb4 {[%clk 0:01:51.1]} 20... axb4 {[%clk 0:02:16.5]}
21. Bf1 {[%clk 0:01:39.2]} 21... Bxf1 {[%clk 0:02:15.2]} 22. Kxf1 {[%clk
0:01:40.1]} 22... Kg8 {[%clk 0:02:10.7]} 23. Qe2 {[%clk 0:01:38.6]} 23... h6
{[%clk 0:01:55.6]} 24. Kg2 {[%clk 0:01:29.6]} 24... Rc6 {[%clk 0:01:51.8]} 25.
Qd2 {[%clk 0:01:28.2]} 25... Rc4 {[%clk 0:01:30.8]} 26. b3 {[%clk 0:01:24.4]}
26... Rxc1 {[%clk 0:01:27.9]} 27. Rxc1 {[%clk 0:01:25.3]} 27... Qb5 {[%clk
0:01:19.4]} 28. Rc7 {[%clk 0:01:22.7]} 28... f6 {[%clk 0:00:46.8]} 29. Qc2
{[%clk 0:01:13.5]} 29... f5 {[%clk 0:00:30.7]} 30. Qc6 {[%clk 0:01:12.9]} 30...
Qxc6 {[%clk 0:00:06.6]} 31. Rxc6 {[%clk 0:01:13.8]} 31... Ra8 {[%clk 0:00:04]}
32. Rxe6 {[%clk 0:01:11.8]} 32... Rxa2 {[%clk 0:00:01.1]} 33. Rxb6 {[%clk
0:01:11.6]} 1-0